bitfinex/quotes_SOLUSD_20240708
["timestamp","ask_amount","ask_price","bid_price","bid_amount"]
[1720453561035,7.261,137.73,137.67,100.0]
[1720453561264,1.81546631,137.75,137.67,100.0]
[1720453561561,7.2616,137.71,137.67,100.0]
[1720453561765,1.81546631,137.75,137.69,100.0]
[1720453562067,7.2649,137.65,137.61,100.0]
[1720453562216,0.17,137.69,137.58,100.0]
[1720453562553,7.2674,137.6,137.52,100.0]
[1720453562848,37.19,137.62,137.52,100.0]
[1720453562849,1.81710597,137.59,137.52,100.0]
[1720453563050,7.2705,137.55,137.53,7.59770674]
[1720453563262,20.0,137.54,137.53,7.59770674]
[1720453563419,1.98758396,137.61,137.53,7.59770674]
[1720453563626,7.268,137.59,137.53,7.59770674]
[1720453563845,20.0,137.58,137.53,7.59770674]
[1720453564155,1.79825009,137.57,137.49,100.0]
[1720453564320,1.81757658,137.58,137.49,100.0]
[1720453564665,20.0,137.61,137.56,100.0]
[1720453565016,20.0,137.61,137.54,100.0]
[1720453565122,20.0,137.61,137.52,200.0]
[1720453565123,18.31684212,137.61,137.52,200.0]
[1720453565328,1.79871391,137.6,137.52,100.0]
[1720453565544,1.79871391,137.6,137.51,100.0]
[1720453565545,19.96781391,137.6,137.51,100.0]
[1720453565733,7.269,137.58,137.51,100.0]
[1720453565941,24.11229909,137.61,137.51,100.0]
[1720453565942,1.79871391,137.57,137.51,100.0]
[1720453566140,1.79871391,137.56,137.46,100.0]
[1720453566344,1.79871391,137.56,137.44,115.8521]
[1720453566345,7.2711,137.53,137.48,100.0]
[1720453566545,1.79871391,137.56,137.48,100.0]
[1720453566747,7.2705,137.55,137.48,100.0]
[1720453566922,7.2706,137.54,137.48,100.0]
[1720453567325,1.96871391,137.57,137.44,115.8521]
[1720453567326,21.79871391,137.53,137.44,115.8521]
[1720453567650,20.0,137.53,137.49,100.0]
[1720453567854,13.66342583,137.61,137.54,100.0]
[1720453568066,5.79545697,137.61,137.56,100.0]
[1720453568368,7.2676,137.6,137.56,100.0]
[1720453568650,7.2668,137.62,137.56,100.0]
[1720453568872,7.2668,137.62,137.54,21.87]
[1720453568873,1.79871391,137.62,137.52,100.0]
[1720453569032,37.19,137.61,137.56,100.0]
[1720453569230,1.79871391,137.64,137.58,100.0]
[1720453569433,1.79871391,137.64,137.55,100.0]
[1720453569434,37.19,137.65,137.6,100.0]
[1720453569672,13.18011266,137.66,137.6,100.0]
[1720453570042,1.79871391,137.65,137.58,100.0]
[1720453570241,7.2654,137.64,137.58,100.0]
[1720453570469,9.06481391,137.63,137.58,100.0]
[1720453570835,61.19763807,137.69,137.6,100.0]
[1720453570836,1.79871391,137.68,137.6,100.0]
[1720453571041,7.59471566,137.67,137.62,100.0]
[1720453571369,43.04003807,137.69,137.62,100.0]
[1720453571370,50.30283807,137.69,137.62,100.0]
[1720453571544,7.2643,137.66,137.6,100.0]
[1720453571742,1.79871391,137.68,137.58,100.0]
[1720453571974,1.79871391,137.67,137.58,100.0]
[1720453572143,1.79871391,137.67,137.6,100.0]
[1720453572144,7.2642,137.66,137.6,100.0]
[1720453572508,68.79035412,137.69,137.58,100.0]
[1720453572509,1.79871391,137.65,137.58,100.0]
[1720453572684,7.2663,137.63,137.58,100.0]
[1720453572839,21.79871391,137.68,137.52,100.0]
[1720453572840,7.2689,137.58,137.52,100.0]
[1720453573143,9.06801391,137.57,137.52,100.0]
[1720453573350,1.79871391,137.56,137.48,16.1327]
[1720453573584,1.79871391,137.56,137.47,100.0]
[1720453573585,38.98871391,137.56,137.47,100.0]
[1720453573871,38.98871391,137.56,137.5,100.0]
[1720453573872,20.0,137.55,137.5,100.0]
[1720453574371,1.79871391,137.54,137.46,100.0]
[1720453574578,7.2722,137.51,137.44,100.0]
[1720453574749,7.2722,137.51,137.46,100.0]
[1720453574946,7.2727,137.5,137.46,100.0]
[1720453575471,7.272,137.52,137.46,100.0]
[1720453575643,1.79871391,137.54,137.46,100.0]
[1720453575972,37.19,137.61,137.52,121.87]
[1720453576150,7.269,137.57,137.5,100.0]
[1720453576354,1.79871391,137.6,137.5,100.0]
[1720453576576,1.79871391,137.6,137.52,100.0]
[1720453576757,1.79871391,137.6,137.54,100.0]
[1720453577074,37.19,137.61,137.54,121.87]
[1720453577248,37.19,137.61,137.56,100.0]
[1720453577454,5.87960191,137.63,137.56,100.0]
[1720453577681,1.79871391,137.62,137.56,100.0]
[1720453577989,9.06511391,137.62,137.56,100.0]
[1720453578281,43.5207,137.65,137.54,100.0]
[1720453578282,49.48936015,137.65,137.54,100.0]
[1720453578483,49.48936015,137.65,137.52,15.2259]
[1720453578484,1.79871391,137.64,137.52,15.2259]
[1720453578672,7.2702,137.55,137.5,100.0]
[1720453578859,18.1706,137.59,137.48,100.0]
[1720453579181,9.06711391,137.59,137.51,100.0]
[1720453579374,7.2686,137.58,137.51,100.0]
[1720453579565,27.2686,137.58,137.51,100.0]
[1720453579767,9.06781391,137.57,137.49,221.87]
[1720453579994,20.0,137.56,137.47,115.2259]
[1720453580192,20.0,137.56,137.47,100.0]
[1720453580193,7.2722,137.51,137.47,100.0]
[1720453580490,7.2736,137.49,137.41,15.3047]
[1720453580781,7.2736,137.49,137.42,100.0]
[1720453580782,20.0,137.48,137.42,100.0]
[1720453581090,20.0,137.48,137.41,15.3047]
[1720453581091,21.79871391,137.48,137.41,15.3047]
[1720453581254,58.98871391,137.48,137.37,200.0]
[1720453581461,7.2759,137.44,137.35,221.9044]
[1720453581784,9.07311391,137.47,137.4,100.0]
[1720453581950,57.19,137.48,137.42,100.0]
[1720453582152,64.78496414,137.48,137.42,100.0]
[1720453582450,20.0,137.48,137.44,100.0]
[1720453582656,15.13966886,137.52,137.46,100.0]
[1720453582891,7.2717,137.52,137.44,100.0]
[1720453583082,1.79871391,137.51,137.42,100.0]
[1720453583252,38.98871391,137.51,137.44,100.0]
[1720453583584,37.19,137.51,137.46,100.0]
[1720453583801,7.2737,137.49,137.42,100.0]
[1720453584004,20.0,137.48,137.42,100.0]
[1720453584313,20.0,137.48,137.4,100.0]
[1720453584314,39.97841391,137.52,137.4,100.0]
[1720453584599,39.97841391,137.52,137.39,100.0]
[1720453584600,7.2731,137.5,137.42,121.87]
[1720453584783,1.79871391,137.52,137.45,100.0]
[1720453585060,1.79871391,137.51,137.43,100.0]
[1720453585170,7.2723,137.51,137.43,100.0]
[1720453585373,13.9926386,137.53,137.46,100.0]
[1720453585575,13.4795,137.53,137.46,100.0]
[1720453585977,1.79871391,137.52,137.44,100.0]
[1720453586384,7.2728,137.5,137.44,100.0]
[1720453586597,1.79871391,137.52,137.44,100.0]
[1720453586807,7.2734,137.49,137.44,100.0]
[1720453587181,7.2727,137.51,137.44,100.0]
[1720453587379,20.0,137.5,137.44,100.0]
[1720453587579,15.27821391,137.53,137.47,100.0]
[1720453587889,20.0,137.52,137.43,100.0]
[1720453588085,7.2728,137.5,137.43,100.0]
[1720453588781,7.2744,137.47,137.39,200.0]
[1720453588985,7.2744,137.47,137.4,21.87]
[1720453589291,20.0,137.46,137.4,21.87]
[1720453589491,20.0,137.46,137.42,100.0]
[1720453589677,20.0,137.47,137.4,100.0]
[1720453589883,1.79871391,137.46,137.38,121.87]
[1720453590093,7.2749,137.46,137.41,100.0]
[1720453590305,21.79871391,137.45,137.39,100.0]
[1720453590612,7.277,137.42,137.39,100.0]
[1720453590832,21.79871391,137.45,137.35,115.8751]
[1720453590833,38.98871391,137.44,137.35,115.8751]
[1720453591111,38.98871391,137.44,137.35,100.0]
[1720453591112,7.2773,137.42,137.35,100.0]
[1720453591279,21.79871391,137.41,137.35,100.0]
[1720453591487,1.79871391,137.41,137.32,100.0]
[1720453591678,1.79871391,137.41,137.33,107.2816]
[1720453591875,21.79871391,137.41,137.33,107.2816]
[1720453592616,37.19,137.44,137.35,100.0]
[1720453592908,7.2773,137.42,137.35,100.0]
[1720453593079,7.2781,137.4,137.35,100.0]
[1720453593424,20.0,137.39,137.33,100.0]
[1720453593579,7.59699078,137.41,137.35,107.2804]
[1720453593780,7.59699078,137.41,137.35,100.0]
[1720453593781,20.0,137.4,137.35,100.0]
[1720453593997,5.72229372,137.45,137.42,100.0]
[1720453594204,5.72229372,137.45,137.4,18.1938]
[1720453594205,38.98871391,137.52,137.44,107.2753]
[1720453594405,38.98871391,137.52,137.44,107.2757]
[1720453594406,7.59133489,137.51,137.44,107.2757]
[1720453594588,7.69284652,137.52,137.44,125.4645]
[1720453594903,7.69284652,137.52,137.42,100.0]
[1720453594904,1.79871391,137.51,137.42,100.0]
[1720453595104,7.69284652,137.52,137.44,100.0]
[1720453595307,1.79871391,137.51,137.44,100.0]
[1720453595519,8.00671391,137.53,137.46,100.0]
[1720453595692,11.99795775,137.53,137.46,100.0]
[1720453595896,5.78995775,137.53,137.46,107.2744]
[1720453596085,9.3831057,137.54,137.47,7.2741]
[1720453596407,7.58439179,137.54,137.48,100.0]
[1720453596607,9.3831057,137.54,137.48,100.0]
[1720453596793,7.2711,137.53,137.48,100.0]
[1720453596977,16.6537057,137.54,137.48,100.0]
[1720453597181,13.58703469,137.54,137.48,107.2736]
[1720453597497,13.58703469,137.54,137.47,100.0]
[1720453597702,6.0026429,137.54,137.47,100.0]
[1720453597913,1.79871391,137.54,137.47,100.0]
[1720453598417,7.2717,137.52,137.45,100.0]
[1720453598581,20.0,137.51,137.45,100.0]
[1720453598776,20.0,137.51,137.43,100.0]
[1720453598991,9.07181391,137.5,137.43,100.0]
[1720453599206,20.0,137.49,137.43,100.0]
[1720453599382,7.2744,137.47,137.43,100.0]
[1720453599592,20.0,137.49,137.43,100.0]
[1720453599981,20.0,137.49,137.41,100.0]
[1720453600180,7.2747,137.47,137.41,100.0]
[1720453600385,20.0,137.46,137.41,100.0]
[1720453600986,0.17,137.53,137.43,100.0]
[1720453601211,0.34,137.53,137.43,100.0]
[1720453601413,7.2727,137.5,137.43,100.0]
[1720453601585,0.34,137.53,137.4,33.7492]
[1720453601586,20.0,137.49,137.45,100.0]
[1720453601781,20.0,137.49,137.43,100.0]
[1720453602002,20.0,137.49,137.43,121.87]
[1720453602208,29.07071391,137.52,137.45,100.0]
[1720453602407,7.2712,137.53,137.47,100.0]
[1720453602619,50.60088679,137.55,137.48,7.2737]
[1720453602620,44.77662318,137.55,137.48,7.2737]
[1720453602790,44.77662318,137.55,137.49,100.0]
[1720453602985,44.77662318,137.55,137.47,129.1438]
[1720453603190,38.98871391,137.55,137.47,121.87]
[1720453603504,37.19,137.55,137.49,100.0]
[1720453603689,37.19,137.55,137.51,100.0]
[1720453603885,7.59043833,137.56,137.51,100.0]
[1720453604203,27.2704,137.55,137.49,100.0]
[1720453604588,20.0,137.55,137.49,100.0]
[1720453604794,44.78094581,137.58,137.53,100.0]
[1720453605116,37.19,137.58,137.51,100.0]
[1720453605419,38.98871391,137.58,137.51,100.0]
[1720453605718,37.19,137.58,137.53,100.0]
[1720453605888,13.56474335,137.6,137.53,121.87]
[1720453606094,7.59034669,137.6,137.55,100.0]
[1720453606312,37.19,137.62,137.57,100.0]
[1720453606514,37.19,137.62,137.55,100.0]
[1720453607317,7.2689,137.58,137.53,100.0]
[1720453607485,37.19,137.62,137.53,100.0]
[1720453607486,20.0,137.57,137.53,100.0]
[1720453607684,20.0,137.58,137.53,100.0]
[1720453607904,20.0,137.58,137.51,116.415]
[1720453608099,18.3376,137.61,137.51,100.0]
[1720453608100,20.0,137.6,137.51,100.0]
[1720453608335,0.34,137.59,137.47,100.0]
[1720453608498,7.2696,137.56,137.49,100.0]
[1720453608690,2.13871391,137.59,137.49,100.0]
[1720453608691,27.2702,137.55,137.49,100.0]
[1720453609321,20.0,137.55,137.49,100.0]
[1720453609509,1.79871391,137.6,137.52,100.0]
[1720453610230,7.268,137.59,137.52,100.0]
[1720453610518,1.79871391,137.59,137.54,100.0]
[1720453610722,1.79871391,137.59,137.46,42.4269]
[1720453610723,1.79871391,137.58,137.51,100.0]
[1720453610933,7.2699,137.56,137.51,100.0]
[1720453611299,7.2702,137.55,137.49,100.0]
[1720453611809,1.79871391,137.58,137.49,100.0]
[1720453611810,20.0,137.54,137.49,100.0]
[1720453612126,1.79871391,137.58,137.51,100.0]
[1720453612127,20.0,137.55,137.51,100.0]
[1720453612302,1.79871391,137.61,137.53,100.0]
[1720453612495,1.79871391,137.6,137.51,100.0]
[1720453612806,7.2692,137.57,137.51,100.0]
[1720453612992,9.06631391,137.6,137.53,100.0]
[1720453613194,9.06631391,137.6,137.51,100.0]
[1720453613195,1.79871391,137.6,137.51,100.0]
[1720453613404,1.79871391,137.59,137.51,100.0]
[1720453613597,7.4385,137.58,137.51,100.0]
[1720453613804,20.0,137.57,137.51,100.0]
[1720453614099,29.06771391,137.57,137.51,100.0]
[1720453614306,7.2698,137.56,137.51,100.0]
[1720453614508,21.79871391,137.57,137.48,100.0]
[1720453614509,7.2713,137.53,137.48,100.0]
[1720453614715,20.0,137.52,137.46,100.0]
[1720453614907,1.79871391,137.52,137.45,15.9874]
[1720453615103,21.79871391,137.54,137.45,15.9874]
[1720453615330,0.17,137.53,137.45,15.9874]
[1720453615621,7.2722,137.51,137.45,15.9874]
[1720453615791,20.0,137.5,137.48,100.0]
[1720453615997,20.0,137.54,137.48,100.0]
[1720453617297,21.79871391,137.54,137.46,100.0]
[1720453617515,20.0,137.54,137.48,100.0]
[1720453617717,20.0,137.54,137.51,100.0]
[1720453618101,21.79871391,137.59,137.51,100.0]
[1720453618306,37.19,137.58,137.49,100.0]
[1720453618528,37.19,137.58,137.45,15.9874]
[1720453618529,21.79871391,137.57,137.47,100.0]
[1720453619099,7.2712,137.53,137.47,100.0]
[1720453619329,20.0,137.52,137.47,100.0]
[1720453619702,20.0,137.55,137.47,100.0]
[1720453619899,0.17,137.53,137.42,100.0]
[1720453620204,1.79871391,137.52,137.44,100.0]
[1720453620434,7.273,137.5,137.44,100.0]
[1720453620728,20.0,137.49,137.44,100.0]
[1720453621241,20.0,137.5,137.44,100.0]
[1720453621453,20.0,137.5,137.46,100.0]
[1720453621647,20.0,137.51,137.44,100.0]
[1720453621938,37.19,137.54,137.47,100.0]
[1720453622142,37.19,137.54,137.49,100.0]
[1720453622327,265.5512,137.66,137.5,118.181]
[1720453622515,7.2695,137.56,137.5,100.0]
[1720453622729,13.31689465,137.6,137.52,100.0]
[1720453622927,1.79871391,137.59,137.48,100.0]
[1720453623242,7.2715,137.53,137.47,100.0]
[1720453623645,1.79871391,137.59,137.5,100.0]
[1720453623819,7.2723,137.51,137.46,100.0]
[1720453624139,7.272,137.52,137.46,100.0]
[1720453624343,20.0,137.5,137.48,100.0]
[1720453624511,7.86796886,137.58,137.5,100.0]
[1720453624708,1.79871391,137.57,137.5,100.0]
[1720453624937,7.2709,137.54,137.48,100.0]
[1720453625174,13.31689465,137.6,137.46,100.0]
[1720453625322,1.79871391,137.59,137.46,100.0]
[1720453625513,24.66668277,137.59,137.46,100.0]
[1720453625730,7.2718,137.52,137.46,100.0]
[1720453625912,18.1756,137.55,137.41,24.2694]
[1720453625913,21.79871391,137.51,137.42,100.0]
[1720453626122,9.07151391,137.5,137.44,100.0]
[1720453626312,27.2733,137.49,137.42,100.0]
[1720453626516,20.0,137.49,137.44,100.0]
[1720453626737,29.07201391,137.49,137.42,100.0]
[1720453627243,20.0,137.49,137.44,100.0]
[1720453627441,7.2733,137.49,137.44,100.0]
[1720453627621,20.0,137.48,137.44,100.0]
[1720453628239,7.273,137.5,137.44,100.0]
[1720453628415,21.79871391,137.53,137.44,100.0]
[1720453628416,9.37220967,137.53,137.44,121.87]
[1720453628609,0.17,137.52,137.44,100.0]
[1720453628833,7.2735,137.49,137.44,100.0]
[1720453629036,7.2735,137.49,137.41,6.0765]
[1720453629037,1.79871391,137.48,137.41,100.0]
[1720453629216,7.2744,137.47,137.41,100.0]
[1720453629418,0.17,137.5,137.41,100.0]
[1720453629617,7.2739,137.48,137.41,100.0]
[1720453630115,20.0,137.47,137.41,100.0]
[1720453631917,20.0,137.48,137.43,100.0]
[1720453632120,7.57199194,137.52,137.45,121.87]
[1720453632426,13.11688352,137.54,137.45,107.2751]
[1720453632637,5.84588352,137.54,137.45,100.0]
[1720453632949,25.54,137.56,137.43,100.0]
[1720453633255,30.54,137.52,137.43,100.0]
[1720453633459,7.2739,137.48,137.43,100.0]
[1720453633622,20.0,137.47,137.43,100.0]
[1720453634320,7.2734,137.49,137.43,100.0]
[1720453634321,20.0,137.48,137.43,100.0]
[1720453634734,7.2711,137.53,137.46,100.0]
[1720453635245,51.30236553,137.56,137.48,100.0]
[1720453635547,45.38500495,137.56,137.5,100.0]
[1720453635753,7.61753902,137.57,137.5,100.0]
[1720453635955,9.06611391,137.6,137.52,100.0]
[1720453636261,1.79871391,137.61,137.54,100.0]
[1720453636624,9.06561391,137.61,137.54,100.0]
[1720453636820,38.12887524,137.62,137.58,100.0]
[1720453637134,9.06441391,137.64,137.58,100.0]
[1720453637338,7.2669,137.61,137.54,100.0]
[1720453637652,9.06631391,137.6,137.54,100.0]
[1720453637952,7.2665,137.62,137.54,100.0]
[1720453638158,1.79871391,137.64,137.57,100.0]
[1720453638859,37.27,137.63,137.53,100.0]
[1720453639037,7.2688,137.58,137.51,100.0]
[1720453639354,7.2681,137.59,137.52,100.0]
[1720453639658,20.0,137.58,137.54,100.0]
[1720453639846,7.2678,137.6,137.54,100.0]
[1720453640073,7.2678,137.6,137.52,100.0]
[1720453640074,20.0,137.59,137.52,100.0]
[1720453640247,7.2692,137.57,137.52,100.0]
[1720453640551,20.0,137.56,137.52,100.0]
[1720453641056,20.0,137.59,137.56,100.0]
[1720453641264,20.0,137.62,137.56,100.0]
[1720453641438,37.27,137.67,137.58,100.0]
[1720453641439,8.25101391,137.66,137.58,100.0]
[1720453641645,7.2658,137.63,137.56,121.87]
[1720453642158,1.79871391,137.64,137.56,121.87]
[1720453642363,7.5941872,137.66,137.6,100.0]
[1720453642655,1.79871391,137.68,137.6,100.0]
[1720453642857,9.06231391,137.68,137.6,100.0]
[1720453643070,9.06251391,137.67,137.6,100.0]
[1720453643366,50.7938299,137.69,137.63,100.0]
[1720453643534,50.7938299,137.69,137.6,116.3116]
[1720453643535,7.2638,137.67,137.6,116.3116]
[1720453643736,1.79871391,137.68,137.6,116.3116]
[1720453643931,1.79871391,137.67,137.6,16.3116]
[1720453644352,9.39198432,137.68,137.62,100.0]
[1720453644547,7.59327041,137.68,137.62,100.0]
[1720453644732,1.79871391,137.7,137.62,100.0]
[1720453645435,7.2638,137.67,137.62,100.0]
[1720453645642,1.79871391,137.66,137.6,16.3116]
[1720453645962,1.79871391,137.66,137.6,116.3116]
[1720453646333,9.06311391,137.66,137.6,16.3116]
[1720453646573,20.0,137.65,137.6,16.3116]
[1720453646726,7.2651,137.65,137.6,16.3116]
[1720453646926,29.06431391,137.64,137.6,16.3116]
[1720453647130,9.23291391,137.66,137.6,16.3116]
[1720453647429,20.0,137.63,137.6,116.3116]
[1720453647631,44.5328,137.69,137.6,38.1816]
[1720453647831,37.27,137.69,137.63,100.0]
[1720453648057,9.06101391,137.7,137.63,100.0]
[1720453648226,5.80938421,137.71,137.63,100.0]
[1720453648227,7.60809812,137.71,137.63,100.0]
[1720453648437,1.79871391,137.7,137.63,100.0]
[1720453648635,9.06091391,137.7,137.63,100.0]
[1720453648838,1.79871391,137.71,137.65,100.0]
[1720453649072,7.59240324,137.72,137.67,100.0]
[1720453649357,7.2593,137.76,137.69,100.0]
[1720453649559,39.06871391,137.78,137.71,100.0]
[1720453649742,7.58963442,137.77,137.71,100.0]
[1720453649943,37.27,137.78,137.59,291.9377]
[1720453649944,37.27,137.74,137.62,100.0]
[1720453650254,7.2631,137.69,137.62,100.0]
[1720453650568,7.2637,137.67,137.59,100.0]
[1720453650736,37.27,137.7,137.57,100.0]
[1720453650737,1.79871391,137.66,137.57,100.0]
[1720453650937,1.79871391,137.65,137.58,100.0]
[1720453651160,1.79871391,137.65,137.55,15.796]
[1720453651161,0.34,137.64,137.55,15.796]
[1720453651385,37.27,137.62,137.55,115.796]
[1720453651666,21.79871391,137.61,137.55,15.796]
[1720453651868,9.06651391,137.6,137.55,15.796]
[1720453652177,9.06651391,137.6,137.49,115.796]
[1720453652178,7.2699,137.56,137.49,115.796]
[1720453652462,9.06731391,137.58,137.52,100.0]
[1720453652666,20.0,137.57,137.52,100.0]
[1720453653568,21.79871391,137.58,137.52,100.0]
[1720453654157,20.0,137.58,137.52,100.0]
[1720453654465,21.79871391,137.61,137.52,100.0]
[1720453654650,7.2683,137.59,137.52,100.0]
[1720453654854,20.0,137.58,137.52,121.87]
[1720453655060,9.06661391,137.6,137.52,100.0]
[1720453655252,27.2682,137.59,137.52,100.0]
[1720453655462,1.79871391,137.58,137.49,15.796]
[1720453655767,9.06751391,137.58,137.5,100.0]
[1720453655949,29.06751391,137.58,137.52,100.0]
[1720453656149,9.06681391,137.59,137.52,100.0]
[1720453656351,20.0,137.57,137.52,100.0]
[1720453656871,7.2706,137.54,137.49,15.796]
[1720453657057,7.2702,137.55,137.49,15.796]
[1720453657259,20.0,137.54,137.49,115.796]
[1720453657769,29.06891391,137.55,137.49,115.796]
[1720453658077,20.0,137.55,137.49,115.796]
[1720453658249,1.79871391,137.56,137.49,115.796]
[1720453658573,1.79871391,137.6,137.52,100.0]
[1720453658764,7.2683,137.59,137.52,100.0]
[1720453658972,7.92291391,137.61,137.54,100.0]
[1720453659283,1.79871391,137.6,137.52,21.87]
[1720453659598,7.2681,137.59,137.51,100.0]
[1720453659747,1.79871391,137.58,137.51,100.0]
[1720453659951,1.79871391,137.6,137.49,115.796]
[1720453660170,7.2704,137.55,137.49,115.796]
[1720453660377,20.0,137.54,137.49,115.796]
[1720453660778,20.0,137.54,137.49,137.666]
[1720453660983,20.0,137.55,137.51,100.0]
[1720453661153,27.2696,137.56,137.49,115.796]
[1720453661355,7.2701,137.55,137.49,115.796]
[1720453661558,20.0,137.54,137.49,115.796]
[1720453662182,20.0,137.55,137.49,115.796]
[1720453662379,0.17,137.58,137.49,115.796]
[1720453662677,0.34,137.58,137.49,115.796]
[1720453663252,7.2697,137.56,137.49,115.796]
[1720453663470,20.0,137.55,137.49,115.796]
[1720453664284,20.0,137.56,137.49,115.796]
[1720453664663,29.06831391,137.56,137.49,115.796]
[1720453664859,7.2702,137.55,137.49,115.796]
[1720453665059,20.0,137.54,137.49,115.796]
[1720453665364,0.34,137.53,137.44,15.3567]
[1720453665562,0.34,137.53,137.45,100.0]
[1720453665563,1.79871391,137.52,137.45,100.0]
[1720453665762,7.2723,137.51,137.45,100.0]
[1720453665990,20.0,137.5,137.45,100.0]
[1720453666957,20.0,137.5,137.47,100.0]
[1720453667160,7.2716,137.52,137.47,100.0]
[1720453667375,20.0,137.51,137.45,100.0]
[1720453667585,1.79871391,137.53,137.48,100.0]
[1720453667771,1.79871391,137.56,137.5,100.0]
[1720453668093,1.79871391,137.57,137.5,100.0]
[1720453668664,9.06791391,137.57,137.5,100.0]
[1720453668964,7.2696,137.56,137.5,100.0]
[1720453669561,1.79871391,137.58,137.5,100.0]
[1720453669768,1.79871391,137.57,137.5,100.0]
[1720453670387,0.17,137.56,137.5,100.0]
[1720453670962,7.2701,137.55,137.5,100.0]
[1720453671156,20.0,137.54,137.5,100.0]
[1720453671766,20.0,137.55,137.5,100.0]
[1720453672285,27.2701,137.55,137.5,100.0]
[1720453672595,9.06931391,137.54,137.48,100.0]
[1720453672770,7.2726,137.51,137.46,100.0]
[1720453672968,20.0,137.5,137.46,100.0]
[1720453673280,20.17,137.53,137.48,100.0]
[1720453673281,20.0,137.53,137.48,100.0]
[1720453673482,37.27,137.55,137.48,100.0]
[1720453673693,44.5401,137.55,137.48,100.0]
[1720453674274,37.27,137.55,137.5,100.0]
[1720453674469,44.5404,137.55,137.47,100.0]
[1720453674679,7.2717,137.52,137.45,100.0]
[1720453674878,20.0,137.51,137.47,100.0]
[1720453675078,29.06941391,137.54,137.47,100.0]
[1720453675468,29.06941391,137.54,137.44,15.3567]
[1720453675469,20.0,137.54,137.49,100.0]
[1720453675868,29.06961391,137.54,137.47,100.0]
[1720453676087,21.79871391,137.54,137.46,100.0]
[1720453676396,7.2723,137.51,137.46,100.0]
[1720453676704,27.2729,137.5,137.44,15.3567]
[1720453677174,20.0,137.5,137.45,100.0]
[1720453677570,20.0,137.5,137.44,15.3567]
[1720453677770,20.0,137.5,137.45,100.0]
[1720453677988,27.2716,137.52,137.45,100.0]
[1720453678297,20.0,137.52,137.45,100.0]
[1720453678597,20.0,137.52,137.47,100.0]
[1720453678805,21.79871391,137.54,137.47,100.0]
[1720453678976,39.60911391,137.55,137.49,100.0]
[1720453679172,14.84987408,137.57,137.51,100.0]
[1720453679491,14.84987408,137.57,137.49,21.87]
[1720453679492,7.2697,137.56,137.49,100.0]
[1720453679691,1.79871391,137.55,137.49,100.0]
[1720453679998,9.06821391,137.56,137.49,100.0]
[1720453680308,1.79871391,137.55,137.47,200.0]
[1720453680483,13.41536096,137.57,137.53,100.0]
[1720453680677,7.58087408,137.57,137.53,100.0]
[1720453680993,15.13576886,137.6,137.51,121.87]
[1720453680994,7.2682,137.59,137.51,121.87]